bitfinex-derivatives/quotes_BTCF0:USTF0_20250620
["timestamp","ask_amount","ask_price","bid_price","bid_amount"]
[1750398724138,0.20453564,104570.0,104560.0,2.22929811]
[1750398724325,0.20493564,104570.0,104560.0,2.22929811]
[1750398724526,0.14755427,104570.0,104560.0,2.22929811]
[1750398725234,0.14755427,104570.0,104560.0,2.48130883]
[1750398725533,0.14715427,104570.0,104560.0,2.48130883]
[1750398725933,0.14755427,104570.0,104560.0,2.48130883]
[1750398726435,0.14755427,104570.0,104560.0,2.67258083]
[1750398726632,0.14715427,104570.0,104560.0,2.67258083]
[1750398726833,0.14755427,104570.0,104560.0,2.67258083]
[1750398731235,0.14755427,104570.0,104560.0,2.48130883]
[1750398734137,0.14755427,104570.0,104560.0,2.48145422]
[1750398736435,0.14755427,104570.0,104560.0,2.81145422]
[1750398736637,0.14715427,104570.0,104560.0,2.81145422]
[1750398736835,0.14755427,104570.0,104560.0,2.81145422]
[1750398737536,0.05738137,104590.0,104580.0,0.1912218]
[1750398737740,0.11818137,104590.0,104580.0,2.12736324]
[1750398737934,0.11818137,104590.0,104580.0,2.20585995]
[1750398738137,0.11738137,104590.0,104580.0,2.20585995]
[1750398738330,0.11778137,104590.0,104580.0,2.20585995]
[1750398741442,0.0604,104590.0,104580.0,2.20585995]
[1750398746147,0.06,104590.0,104580.0,2.20585995]
[1750398746346,0.0604,104590.0,104580.0,2.20585995]
[1750398749651,0.08319445,104590.0,104580.0,2.20585995]
[1750398750446,0.08319445,104590.0,104580.0,1.49533995]
[1750398750651,0.08319445,104590.0,104580.0,2.20673995]
[1750398754553,0.08736852,104590.0,104580.0,2.20673995]
[1750398755458,0.08736852,104590.0,104580.0,2.45875067]
[1750398755658,0.08696852,104590.0,104580.0,2.20673995]
[1750398755846,0.08736852,104590.0,104580.0,1.70271851]
[1750398756051,0.08696852,104590.0,104580.0,2.58673995]
[1750398756455,0.08736852,104590.0,104580.0,2.58673995]
[1750398757057,0.08736852,104590.0,104580.0,2.61893995]
[1750398757258,0.08736852,104590.0,104580.0,2.87095067]
[1750398763057,0.06457407,104590.0,104580.0,2.87095067]
[1750398764256,0.06457407,104590.0,104580.0,2.61893995]
[1750398764659,0.06457407,104590.0,104580.0,2.87095067]
[1750398765856,0.02739157,104590.0,104580.0,2.87095067]
[1750398766255,0.02739157,104590.0,104580.0,3.16565067]
[1750398766653,0.02699157,104590.0,104580.0,3.16565067]
[1750398766855,0.02739157,104590.0,104580.0,3.16565067]
[1750398767756,0.001,104600.0,104580.0,3.22643959]
[1750398767957,0.001,104600.0,104590.0,1.40313566]
[1750398768151,0.121,104600.0,104590.0,1.60520359]
[1750398768349,0.121,104600.0,104590.0,1.70319287]
[1750398768559,0.1214,104600.0,104590.0,1.70319287]
[1750398769355,0.73477078,104630.0,104620.0,0.1911487]
[1750398769663,0.89698468,104630.0,104620.0,1.53025743]
[1750398770059,0.84919918,104630.0,104620.0,1.53025743]
[1750398770364,0.81734112,104630.0,104620.0,1.78226815]
[1750398770564,0.5653304,104630.0,104620.0,1.78226815]
[1750398770760,0.28,104630.0,104620.0,1.78926815]
[1750398770955,0.28,104630.0,104620.0,1.88556815]
[1750398771164,0.2804,104630.0,104620.0,1.88556815]
[1750398771357,0.28,104630.0,104620.0,1.88556815]
[1750398771557,0.2804,104630.0,104620.0,1.88956815]
[1750398771957,0.1404,104630.0,104620.0,1.88956815]
[1750398772764,0.1404,104630.0,104620.0,1.89918187]
[1750398772955,0.4615304,104630.0,104620.0,1.89918187]
[1750398773157,0.3315304,104630.0,104620.0,1.89918187]
[1750398773365,0.4415304,104630.0,104620.0,1.89918187]
[1750398774165,0.3315304,104630.0,104620.0,1.89918187]
[1750398774969,0.4415304,104630.0,104620.0,1.89918187]
[1750398777265,0.5045304,104630.0,104620.0,1.89918187]
[1750398777465,0.3945304,104630.0,104620.0,1.89918187]
[1750398777760,0.4941304,104630.0,104620.0,1.89918187]
[1750398777966,0.3949304,104630.0,104620.0,1.89918187]
[1750398778364,0.3626304,104630.0,104620.0,1.89918187]
[1750398780469,0.3626304,104630.0,104620.0,1.18890187]
[1750398780671,0.3626304,104630.0,104620.0,1.89902187]
[1750398780970,0.5026304,104630.0,104620.0,1.89902187]
[1750398781371,0.3626304,104630.0,104620.0,1.89902187]
[1750398785065,0.75881519,104630.0,104620.0,0.39743173]
[1750398785374,0.92401519,104630.0,104620.0,1.55071105]
[1750398785574,0.82401519,104630.0,104620.0,1.55071105]
[1750398785776,0.82401519,104630.0,104620.0,1.54109733]
[1750398787979,0.82401519,104630.0,104620.0,0.83097733]
[1750398788276,0.82401519,104630.0,104620.0,1.54121733]
[1750398789380,0.88120732,104630.0,104620.0,1.54121733]
[1750398789884,0.88120732,104630.0,104620.0,0.83097733]
[1750398790076,0.88120732,104630.0,104620.0,1.54117733]
[1750398795883,0.88120732,104630.0,104620.0,1.57197733]
[1750398796284,0.88120732,104630.0,104620.0,0.99433733]
[1750398796583,0.88120732,104630.0,104620.0,1.57185733]
[1750398797082,0.88120732,104630.0,104620.0,1.60275733]
[1750398798083,0.88120732,104630.0,104620.0,1.63335733]
[1750398798484,0.82401519,104630.0,104620.0,1.63335733]
[1750398798977,0.82401519,104630.0,104620.0,1.05583733]
[1750398799179,0.82401519,104630.0,104620.0,1.63335733]
[1750398799379,0.79081519,104630.0,104620.0,1.63335733]
[1750398799780,0.75881519,104630.0,104620.0,1.63335733]
[1750398800885,0.75881519,104630.0,104620.0,1.38134661]
[1750398801086,0.75881519,104630.0,104620.0,1.63335733]
[1750398801287,0.75881519,104630.0,104620.0,1.05583733]
[1750398801686,0.75881519,104630.0,104620.0,1.63335733]
[1750398802890,0.72811519,104630.0,104620.0,1.63335733]
[1750398804382,0.72811519,104630.0,104620.0,1.38134661]
[1750398805788,0.72811519,104630.0,104620.0,1.63335733]
[1750398810794,0.72811519,104630.0,104620.0,0.44302661]
[1750398810997,0.72811519,104630.0,104620.0,0.69503733]
[1750398811192,0.72811519,104630.0,104620.0,1.63335733]
[1750398811586,0.72811519,104630.0,104620.0,1.44220873]
[1750398812296,0.72811519,104630.0,104620.0,1.63335743]
[1750398812895,0.72811519,104630.0,104620.0,0.80382671]
[1750398813189,0.72811519,104630.0,104620.0,1.63335743]
[1750398813898,0.72811519,104630.0,104620.0,1.63331743]
[1750398814094,0.72811519,104630.0,104620.0,1.38130671]
[1750398814296,0.72811519,104630.0,104620.0,0.80382671]
[1750398814791,0.72811519,104630.0,104620.0,1.38130671]
[1750398815196,0.47610447,104630.0,104620.0,1.38130671]
[1750398815393,0.72811519,104630.0,104620.0,1.38130671]
[1750398815794,0.72811519,104630.0,104620.0,0.67126671]
[1750398815997,0.72811519,104630.0,104620.0,1.38130671]
[1750398817492,0.72811519,104630.0,104620.0,0.80382671]
[1750398817791,0.72811519,104630.0,104620.0,1.38130671]
[1750398817992,0.72811519,104630.0,104620.0,0.80382671]
[1750398818291,0.72811519,104630.0,104620.0,1.38130671]
[1750398818800,0.47610447,104630.0,104620.0,1.38130671]
[1750398819098,0.72811519,104630.0,104620.0,1.38130671]
[1750398821199,0.72811519,104630.0,104620.0,1.63331743]
[1750398821894,0.72811519,104630.0,104620.0,1.38130671]
[1750398822200,0.72811519,104630.0,104620.0,1.63331743]
[1750398822397,0.72811519,104630.0,104620.0,1.38130671]
[1750398822597,0.72811519,104630.0,104620.0,1.63331743]
[1750398825595,0.58811519,104630.0,104620.0,1.63331743]
[1750398825795,0.71811519,104630.0,104620.0,1.63331743]
[1750398828700,0.79464249,104630.0,104620.0,1.63331743]
[1750398833911,0.71811519,104630.0,104620.0,1.63331743]
[1750398834507,0.58463035,104630.0,104620.0,1.63331743]
[1750398837511,0.58463035,104630.0,104620.0,1.63323743]
[1750398842619,0.58463035,104630.0,104620.0,1.27243743]
[1750398842817,0.58463035,104630.0,104620.0,1.63323743]
[1750398847222,0.66115765,104630.0,104620.0,1.63323743]
[1750398848725,0.66115765,104630.0,104620.0,1.38122671]
[1750398848927,0.66115765,104630.0,104620.0,1.63323743]
[1750398850526,0.40914693,104630.0,104620.0,1.63323743]
[1750398850726,0.66115765,104630.0,104620.0,1.63323743]
[1750398853931,0.58463035,104630.0,104620.0,1.63323743]
[1750398857029,0.58463035,104630.0,104620.0,1.38122671]
[1750398857228,0.58463035,104630.0,104620.0,1.63323743]
[1750398867539,0.58463035,104630.0,104620.0,1.27243743]
[1750398867740,0.58463035,104630.0,104620.0,1.63323743]
[1750398868544,0.33261963,104630.0,104620.0,1.63323743]
[1750398868746,0.58463035,104630.0,104620.0,1.63323743]
[1750398869742,0.58463035,104630.0,104620.0,1.27243743]
[1750398869941,0.58463035,104630.0,104620.0,1.63323743]
[1750398873048,0.58463035,104630.0,104620.0,0.92327743]
[1750398873344,0.58463035,104630.0,104620.0,1.63307743]
[1750398873947,0.66115765,104630.0,104620.0,1.63307743]
[1750398879144,0.66115765,104630.0,104620.0,1.38106671]
[1750398879347,0.66115765,104630.0,104620.0,1.63307743]
[1750398880752,0.66115765,104630.0,104620.0,1.38106671]
[1750398880948,0.66115765,104630.0,104620.0,1.63307743]
[1750398883954,0.58463035,104630.0,104620.0,1.63307743]
[1750398891158,0.58463035,104630.0,104620.0,1.61705942]
[1750398892157,0.58463035,104630.0,104620.0,1.86907014]
[1750398892758,0.03497407,104630.0,104620.0,1.86907014]
[1750398893056,0.09274619,104630.0,104620.0,1.86907014]
[1750398893759,0.09274619,104630.0,104620.0,2.12108086]
[1750398893957,0.0008,104640.0,104630.0,0.1911304]
[1750398893958,0.1919129,104640.0,104630.0,0.1911304]
[1750398894156,0.18,104640.0,104630.0,0.83724112]
[1750398894357,0.1804,104640.0,104630.0,0.83724112]
[1750398894953,0.1804,104640.0,104630.0,0.84224112]
[1750398895656,0.3715121,104640.0,104630.0,0.84224112]
[1750398896261,0.3715121,104640.0,104630.0,0.84524112]
[1750398896957,0.3715121,104640.0,104630.0,1.20604112]
[1750398897264,0.3715121,104640.0,104630.0,1.26784112]
[1750398900565,0.15477304,104640.0,104630.0,1.26784112]
[1750398900760,0.22477304,104640.0,104630.0,1.26784112]
[1750398902362,0.07,104640.0,104630.0,1.26784112]
[1750398903468,0.0704,104640.0,104630.0,1.26784112]
[1750398904767,0.07457407,104640.0,104630.0,1.26784112]
[1750398908972,0.03457407,104640.0,104630.0,1.26784112]
[1750398909173,0.03417407,104640.0,104630.0,1.26784112]
[1750398909375,0.03457407,104640.0,104630.0,1.26784112]
[1750398910175,0.03457407,104640.0,104630.0,1.51985184]
[1750398914683,0.09181217,104640.0,104630.0,1.51985184]
[1750398915182,0.03457407,104640.0,104630.0,1.51985184]
[1750398916271,0.03457407,104640.0,104630.0,1.26784112]
[1750398916475,0.09181217,104640.0,104630.0,1.26784112]
[1750398917786,0.09181217,104640.0,104630.0,1.51985184]
[1750398918776,0.09181217,104640.0,104630.0,1.26784112]
[1750398919684,0.09181217,104640.0,104630.0,1.51985184]
[1750398920686,0.09181217,104640.0,104630.0,1.26784112]
[1750398926084,0.09181217,104640.0,104630.0,1.97724112]
[1750398927289,0.20181217,104640.0,104630.0,1.97724112]
[1750398927692,0.09181217,104640.0,104630.0,1.97724112]
[1750398930897,0.28292437,104640.0,104630.0,1.26784112]
[1750398931198,0.19181217,104640.0,104630.0,1.97720112]
[1750398931400,0.09181217,104640.0,104630.0,1.97720112]
[1750398931696,0.19181217,104640.0,104630.0,1.97720112]
[1750398931898,0.09181217,104640.0,104630.0,1.97720112]
[1750398934195,0.09181217,104640.0,104630.0,2.22921184]
[1750398934988,0.03457407,104640.0,104630.0,2.22921184]
[1750398939307,0.03457407,104640.0,104630.0,1.91536112]
[1750398939597,0.13457407,104640.0,104630.0,1.94626112]
[1750398939797,0.03457407,104640.0,104630.0,1.94626112]
[1750398939997,0.22568617,104640.0,104630.0,1.94626112]
[1750398940200,0.22568617,104640.0,104630.0,1.97766112]
[1750398941304,0.28292427,104640.0,104630.0,1.97766112]
[1750398946206,0.67493499,104640.0,104630.0,1.20604112]
[1750398946403,0.48432427,104640.0,104630.0,1.91536112]
[1750398946618,0.73633499,104640.0,104630.0,1.91536112]
[1750398948016,0.48432427,104640.0,104630.0,1.91536112]
[1750398948217,0.73633499,104640.0,104630.0,1.91536112]
[1750398952017,0.73633499,104640.0,104630.0,1.91036112]
[1750398952833,0.73633499,104640.0,104630.0,1.90736112]
[1750398953622,0.76773499,104640.0,104630.0,1.90736112]
[1750398957027,0.76773499,104640.0,104630.0,1.90732112]
[1750398957028,0.73633499,104640.0,104630.0,1.90732112]
[1750398958023,0.73633499,104640.0,104630.0,1.6553104]
[1750398958229,0.73633499,104640.0,104630.0,1.94002112]
[1750398961826,0.81156092,104640.0,104630.0,1.94002112]
[1750398962028,0.78036092,104640.0,104630.0,1.97012112]
[1750398962424,0.78453499,104640.0,104630.0,1.97012112]
[1750398962829,0.78453499,104640.0,104630.0,1.7181104]
[1750398963030,0.78453499,104640.0,104630.0,1.97012112]
[1750398964734,0.53252427,104640.0,104630.0,1.97012112]
[1750398967239,0.78453499,104640.0,104630.0,1.97012112]
[1750398967425,0.78453499,104640.0,104630.0,1.7181104]
[1750398967626,0.34141217,104640.0,104630.0,1.97012112]
[1750398967935,0.5552809,104640.0,104630.0,1.97012112]
[1750398971338,0.5552809,104640.0,104630.0,1.96115772]
[1750398971539,0.5552809,104640.0,104630.0,1.709147]
[1750398971739,0.5552809,104640.0,104630.0,1.96115772]
[1750398973827,0.4980428,104640.0,104630.0,1.96115772]
[1750398974027,0.55538785,104640.0,104630.0,1.96115772]
[1750398975640,0.4980428,104640.0,104630.0,1.96115772]
[1750398975940,0.3069306,104640.0,104630.0,1.96115772]
[1750398976142,0.4980427,104640.0,104630.0,1.96115772]
[1750398976340,0.75005342,104640.0,104630.0,1.96115772]
[1750398976938,0.3069306,104640.0,104630.0,1.96115772]
[1750398977141,0.4980427,104640.0,104630.0,1.96115772]
[1750398977340,0.4984427,104640.0,104630.0,1.95219432]
[1750398981342,0.55580393,104640.0,104630.0,1.95219432]
[1750398991154,0.36469183,104640.0,104630.0,1.95219432]
[1750398995449,0.36469183,104640.0,104630.0,1.7001836]
[1750398995650,0.22469183,104640.0,104630.0,1.95219432]
[1750398995856,0.04514218,104640.0,104630.0,1.95219432]
[1750398996052,0.06931625,104640.0,104630.0,1.95219432]
[1750399000062,0.06931625,104640.0,104630.0,1.7001836]
[1750399000358,0.06931625,104640.0,104630.0,1.95219432]
[1750399002061,0.06931625,104640.0,104630.0,1.7001836]
[1750399002360,0.06931625,104640.0,104630.0,1.95219432]
[1750399002766,0.06931625,104640.0,104630.0,1.23059432]
[1750399002953,0.06931625,104640.0,104630.0,1.95219432]
[1750399013769,0.06931625,104640.0,104630.0,1.96796048]
[1750399014868,0.06931625,104640.0,104630.0,2.2199712]
[1750399015770,0.06971625,104640.0,104630.0,2.2199712]
[1750399019080,0.06931625,104640.0,104630.0,2.2199712]
[1750399019379,0.06971625,104640.0,104630.0,2.2199712]
[1750399020278,0.06971625,104640.0,104630.0,1.96796048]
[1750399021681,0.06971625,104640.0,104630.0,2.2199712]
[1750399023075,0.06931625,104640.0,104630.0,2.2199712]
[1750399023275,0.06971625,104640.0,104630.0,2.2199712]
[1750399024375,0.02457407,104640.0,104630.0,2.2199712]
[1750399025480,0.02457407,104640.0,104630.0,2.21100853]
[1750399027177,0.02457407,104640.0,104630.0,2.21200853]
[1750399028688,0.02457407,104640.0,104630.0,1.70786735]
[1750399028887,0.02457407,104640.0,104630.0,2.21188879]
[1750399029086,0.02457407,104640.0,104630.0,2.2117448]
[1750399032189,0.02457407,104640.0,104630.0,2.21219952]
[1750399032492,0.02457407,104640.0,104630.0,2.19624237]
[1750399032693,0.02457407,104640.0,104630.0,2.21167124]
[1750399033089,0.02457407,104640.0,104630.0,2.19624237]
[1750399033291,0.02457407,104640.0,104630.0,2.21167124]
[1750399033692,0.02457407,104640.0,104630.0,2.21169331]
[1750399037103,0.02457407,104640.0,104630.0,2.21177403]
[1750399046913,0.02457407,104640.0,104630.0,2.20281145]
[1750399048209,0.02457407,104640.0,104630.0,0.92671001]
[1750399048416,0.08927407,104640.0,104630.0,1.88836073]
[1750399049110,0.08927407,104640.0,104630.0,1.91936073]
[1750399049515,0.08927407,104640.0,104630.0,1.94936073]
[1750399049814,0.08927407,104640.0,104630.0,2.20137145]
[1750399050015,0.08927407,104640.0,104630.0,1.49173145]
[1750399050217,0.08927407,104640.0,104630.0,2.20133145]
[1750399053021,0.08927407,104640.0,104630.0,2.19236862]
[1750399053223,0.08927407,104640.0,104630.0,1.9403579]
[1750399053418,0.11202927,104640.0,104630.0,1.9403579]
[1750399053622,0.11202927,104640.0,104630.0,1.9402779]
[1750399053816,0.04732927,104640.0,104630.0,1.9402779]
[1750399054024,0.09247145,104640.0,104630.0,1.9402779]
[1750399056222,0.09247042,104640.0,104630.0,1.9402779]
[1750399056520,0.09247042,104640.0,104630.0,1.2007579]
[1750399056723,0.65559324,104640.0,104630.0,1.3021979]
[1750399056920,0.71929324,104640.0,104630.0,1.3021979]
[1750399057224,0.46728252,104640.0,104630.0,1.8796379]
[1750399057523,0.27617042,104640.0,104630.0,1.8795979]
[1750399057724,0.52818114,104640.0,104630.0,1.3021979]
[1750399057925,0.46728252,104640.0,104630.0,1.8795979]
[1750399058223,0.34728252,104640.0,104630.0,1.8795979]
[1750399058623,0.45728252,104640.0,104630.0,1.8795979]
[1750399058823,0.26617042,104640.0,104630.0,1.8795979]
[1750399059026,0.51818114,104640.0,104630.0,1.87059473]
[1750399059223,0.26617042,104640.0,104630.0,1.87059473]
[1750399061229,0.51818114,104640.0,104630.0,1.87055473]
[1750399061425,0.26617042,104640.0,104630.0,1.87055473]
[1750399062028,0.26617042,104640.0,104630.0,1.87051473]
[1750399062229,0.51818114,104640.0,104630.0,1.87051473]
[1750399062630,0.26617042,104640.0,104630.0,1.87051473]
[1750399062826,0.51818114,104640.0,104630.0,1.87051473]
[1750399063023,0.44503382,104640.0,104630.0,1.85498307]
[1750399063224,0.1930231,104640.0,104630.0,1.68291152]
[1750399063430,0.1930231,104640.0,104630.0,1.93492224]
[1750399063736,0.44503382,104640.0,104630.0,1.35764224]
[1750399064035,0.19719717,104640.0,104630.0,1.93488224]
[1750399064337,0.14417407,104640.0,104630.0,1.35764224]
[1750399064531,0.14417407,104640.0,104630.0,1.93504224]
[1750399064737,0.14417407,104640.0,104630.0,1.35764224]
[1750399065038,0.14417407,104640.0,104630.0,1.92611907]
[1750399066833,0.14417407,104640.0,104630.0,1.92582265]
[1750399070943,0.14417407,104640.0,104630.0,1.91685948]
[1750399071932,0.14417407,104640.0,104630.0,2.1688702]
[1750399072338,0.14457407,104640.0,104630.0,2.1688702]
[1750399076941,0.14457407,104640.0,104630.0,2.15990706]
[1750399081547,0.14417407,104640.0,104630.0,2.15990706]
[1750399081846,0.14457407,104640.0,104630.0,2.15990706]
[1750399083251,0.14457407,104640.0,104630.0,2.16990706]
[1750399085249,0.14457407,104640.0,104630.0,2.16094394]
[1750399088751,0.14457407,104640.0,104630.0,1.6569225]
[1750399088952,0.14457407,104640.0,104630.0,2.16094394]
[1750399091056,0.14457407,104640.0,104630.0,2.15198146]
[1750399091858,0.14457407,104640.0,104630.0,1.64796002]
[1750399092059,0.14457407,104640.0,104630.0,2.15198146]
[1750399101356,0.14457407,104640.0,104630.0,1.44210146]
[1750399101566,0.14457407,104640.0,104630.0,2.15134146]
[1750399104570,0.14457407,104640.0,104630.0,1.44210146]
[1750399104870,0.14457407,104640.0,104630.0,2.15162146]
[1750399110476,0.14457407,104640.0,104630.0,2.14265876]
[1750399132396,0.14457407,104640.0,104630.0,2.05908419]
[1750399132897,0.14457407,104640.0,104630.0,2.25021459]
[1750399133295,0.14457407,104640.0,104630.0,2.25008017]
[1750399136899,0.14457407,104640.0,104630.0,2.23467184]
[1750399137093,0.14457407,104640.0,104630.0,2.25036379]
[1750399139105,0.62708859,104660.0,104650.0,0.1910938]
[1750399139303,0.89708859,104660.0,104650.0,1.52843783]
[1750399139804,0.89708859,104660.0,104650.0,1.52844013]
[1750399140404,0.89708859,104660.0,104650.0,1.54302424]
[1750399141406,0.89708859,104660.0,104650.0,1.53406158]
[1750399143310,0.89708859,104660.0,104650.0,1.53445283]
[1750399145211,0.90126266,104660.0,104650.0,1.53445283]
[1750399147011,0.90126266,104660.0,104650.0,1.28244211]
[1750399147310,0.90126266,104660.0,104650.0,1.52549022]
[1750399149212,0.89708859,104660.0,104650.0,1.52549022]
[1750399150215,0.90126266,104660.0,104650.0,1.52549022]
[1750399151914,0.97778996,104660.0,104650.0,1.52549022]
[1750399152114,0.97778996,104660.0,104650.0,1.55819022]
[1750399152315,0.90126266,104660.0,104650.0,1.55819022]
[1750399153514,0.90126266,104660.0,104650.0,1.58172761]
[1750399154115,0.97778996,104660.0,104650.0,1.58172761]
[1750399154418,0.90126266,104660.0,104650.0,1.58172761]
[1750399155217,0.74626154,104660.0,104650.0,1.58172761]
[1750399155419,0.74626154,104660.0,104650.0,1.61402761]
[1750399157117,0.82278884,104660.0,104650.0,1.61402761]
[1750399157515,0.74626154,104660.0,104650.0,1.61398761]
[1750399157712,0.74626154,104660.0,104650.0,1.36197689]
[1750399157912,0.74626154,104660.0,104650.0,1.61398761]
[1750399159517,0.74626154,104660.0,104650.0,1.605025]
[1750399159912,0.74626154,104660.0,104650.0,1.35301428]
[1750399160208,0.74626154,104660.0,104650.0,1.605025]
[1750399161224,0.49425082,104660.0,104650.0,1.35301428]
[1750399161425,0.74208747,104660.0,104650.0,1.605025]
[1750399164623,0.74626154,104660.0,104650.0,1.605025]
[1750399165523,0.74626154,104660.0,104650.0,1.59606239]
[1750399166527,0.74208747,104660.0,104650.0,1.59606239]
[1750399167622,0.74626154,104660.0,104650.0,1.59606239]
[1750399168828,0.49425082,104660.0,104650.0,1.59606239]
[1750399169129,0.74626154,104660.0,104650.0,1.59606239]
[1750399169527,0.74208747,104660.0,104650.0,1.59606239]
[1750399170528,0.74626154,104660.0,104650.0,1.59606239]
[1750399171429,0.74626154,104660.0,104650.0,1.58709978]
[1750399173631,0.74208747,104660.0,104650.0,1.58709978]
[1750399174124,0.81861477,104660.0,104650.0,1.58709978]
[1750399176627,0.82278884,104660.0,104650.0,1.58709978]
[1750399177435,0.82278884,104660.0,104650.0,1.57813726]
[1750399177632,0.81861477,104660.0,104650.0,1.57813726]
[1750399180136,0.74208747,104660.0,104650.0,1.57813726]
[1750399183442,0.74208747,104660.0,104650.0,1.56917489]
[1750399184441,0.52201072,104660.0,104650.0,1.56917489]
[1750399184644,0.80863512,104660.0,104650.0,1.56917489]
[1750399186743,0.5566244,104660.0,104650.0,1.56917489]
[1750399187043,0.80863512,104660.0,104650.0,1.56917489]
[1750399187944,0.5566244,104660.0,104650.0,1.56917489]
[1750399188144,0.80863512,104660.0,104650.0,1.56917489]
[1750399189543,0.80863512,104660.0,104650.0,1.54436574]
[1750399194849,0.81280919,104660.0,104650.0,1.54436574]
[1750399195853,0.80863512,104660.0,104650.0,1.54436574]
[1750399197953,0.80863512,104660.0,104650.0,1.90516574]
[1750399200553,0.27,104660.0,104650.0,1.89620345]
[1750399200747,0.3273353,104660.0,104650.0,2.14821417]
[1750399201148,0.1773353,104660.0,104650.0,2.14821417]
[1750399201349,0.1777353,104660.0,104650.0,2.14821417]
[1750399201754,0.0284353,104670.0,104660.0,0.1910755]
[1750399201961,0.0608,104670.0,104660.0,1.30790766]
[1750399202147,0.06,104670.0,104660.0,1.30790766]
[1750399202453,0.0604,104670.0,104660.0,1.30790766]
[1750399202652,0.0018,104690.0,104680.0,0.191039]
[1750399202856,0.0018,104690.0,104680.0,2.12578044]
[1750399202857,0.2618,104690.0,104680.0,2.12578044]
[1750399203056,0.121,104690.0,104680.0,2.12578044]
[1750399203256,0.1214,104690.0,104680.0,2.12578044]
[1750399203555,0.121,104690.0,104680.0,2.12578044]
[1750399203764,0.1214,104690.0,104680.0,2.12578044]
[1750399204555,0.1214,104690.0,104680.0,2.2032535]
[1750399204957,0.1214,104690.0,104680.0,2.2363535]
[1750399205451,0.1214,104690.0,104680.0,2.2373535]
[1750399205852,0.1214,104690.0,104680.0,2.3013535]
[1750399206052,0.121,104690.0,104680.0,2.3013535]
[1750399206254,0.1214,104690.0,104680.0,2.3013535]
[1750399206455,0.1214,104690.0,104680.0,2.29239519]
[1750399215154,0.121,104690.0,104680.0,2.29239519]
[1750399215360,0.1214,104690.0,104680.0,2.29239519]
[1750399217061,0.1214,104690.0,104680.0,1.78837375]
[1750399217253,0.1214,104690.0,104680.0,2.29239519]
[1750399219267,0.12557407,104690.0,104680.0,2.29239519]
[1750399219567,0.12557407,104690.0,104680.0,2.54440591]
[1750399219867,0.12557407,104690.0,104680.0,2.29239519]
[1750399222969,0.12557407,104690.0,104680.0,2.307909]
[1750399225773,0.12557407,104690.0,104680.0,2.29895093]
[1750399229770,0.12557407,104690.0,104680.0,2.26577093]
[1750399229974,0.15787407,104690.0,104680.0,2.26577093]
[1750399230866,0.15787407,104690.0,104680.0,1.74623568]
[1750399231071,0.15787407,104690.0,104680.0,2.26620784]
[1750399231777,0.15787407,104690.0,104680.0,2.25724959]
[1750399231975,0.15787407,104690.0,104680.0,1.54860959]
[1750399232275,0.15787407,104690.0,104680.0,2.25724959]
[1750399233774,0.15787407,104690.0,104680.0,2.28934959]
[1750399234771,0.15787407,104690.0,104680.0,1.58070959]
[1750399235078,0.15787407,104690.0,104680.0,2.28934959]
[1750399237674,0.15787407,104690.0,104680.0,2.28039138]
[1750399238781,0.48822099,104700.0,104690.0,0.1910208]
[1750399238982,0.76822099,104700.0,104690.0,0.83433152]
[1750399241883,0.76822099,104700.0,104690.0,1.38031152]
[1750399242080,0.83082099,104700.0,104690.0,1.38031152]
[1750399242681,0.57881027,104700.0,104690.0,1.41361152]
[1750399243385,0.43881027,104700.0,104690.0,1.41361152]
[1750399243686,0.43881027,104700.0,104690.0,1.4046533]
[1750399246888,0.52881027,104700.0,104690.0,1.4046533]
[1750399247092,0.43881027,104700.0,104690.0,1.4046533]
[1750399247891,0.69082099,104700.0,104690.0,1.4046533]
[1750399248092,0.79082099,104700.0,104690.0,1.4046533]
[1750399248290,0.69082099,104700.0,104690.0,1.4046533]
[1750399248793,0.81082099,104700.0,104690.0,1.5367733]
[1750399249487,0.84232099,104700.0,104690.0,1.5367733]
[1750399249691,0.84232099,104700.0,104690.0,1.52781473]
[1750399249994,0.84649506,104700.0,104690.0,1.52781473]
[1750399251796,0.81519506,104700.0,104690.0,0.95133473]
[1750399251994,0.81519506,104700.0,104690.0,1.52781473]
[1750399252187,0.84789506,104700.0,104690.0,1.49451473]
[1750399254901,0.84789506,104700.0,104690.0,0.78591473]
[1750399255102,0.84789506,104700.0,104690.0,1.49455473]
[1750399255302,0.84789506,104700.0,104690.0,1.52675473]
[1750399258198,0.84789506,104700.0,104690.0,0.5840208]
[1750399258403,1.09990578,104700.0,104690.0,1.54467152]
[1750399258597,1.09990578,104700.0,104690.0,1.53571266]
[1750399258799,1.09990578,104700.0,104690.0,1.28370194]
[1750399259101,1.09990578,104700.0,104690.0,1.53571266]
[1750399259301,1.19990578,104700.0,104690.0,0.57506194]
[1750399259502,1.19990578,104700.0,104690.0,1.25150194]
[1750399259503,1.05469821,104700.0,104690.0,1.25150194]
[1750399262703,0.1910208,104690.0,104680.0,1.01791274]
[1750399262899,0.75133648,104690.0,104680.0,1.94192116]
[1750399263102,0.43832576,104690.0,104680.0,1.97322116]
[1750399263501,0.38832576,104690.0,104680.0,1.97322116]
[1750399263806,0.38872576,104690.0,104680.0,1.97322116]
[1750399264004,0.38872576,104690.0,104680.0,1.97422116]
[1750399264504,0.38872576,104690.0,104680.0,1.96526228]
[1750399268209,0.38872576,104690.0,104680.0,2.33502116]
[1750399272712,0.38872576,104690.0,104680.0,2.31011159]
[1750399273803,0.53872576,104690.0,104680.0,2.31011159]
[1750399274010,0.38872576,104690.0,104680.0,2.31011159]
[1750399274403,0.51872576,104690.0,104680.0,2.31011159]
[1750399274608,0.38872576,104690.0,104680.0,2.31011159]
[1750399279809,0.52872576,104690.0,104680.0,2.31011159]
[1750399280013,0.38872576,104690.0,104680.0,2.31011159]
[1750399280517,0.39289983,104690.0,104680.0,2.31011159]
[1750399282010,0.53289983,104690.0,104680.0,2.31011159]
[1750399282219,0.39289983,104690.0,104680.0,2.31011159]
[1750399287822,0.39289983,104690.0,104680.0,2.30115274]
[1750399289017,0.20187903,104690.0,104680.0,2.30115274]
[1750399289926,0.20187903,104690.0,104680.0,2.31686023]
[1750399291121,0.20147903,104690.0,104680.0,2.31686023]
[1750399291316,0.20187903,104690.0,104680.0,2.31686023]
[1750399298426,0.20187903,104690.0,104680.0,2.56887095]
[1750399298427,0.2245957,104690.0,104680.0,2.56887095]
[1750399298623,0.2241957,104690.0,104680.0,2.31686023]
[1750399298926,0.2245957,104690.0,104680.0,2.31686023]
[1750399299327,0.16729074,104690.0,104680.0,2.31686023]
[1750399310541,0.16729074,104690.0,104680.0,1.81283879]
[1750399310740,0.16729074,104690.0,104680.0,2.31686023]
[1750399312236,0.16727893,104690.0,104680.0,2.31686023]
[1750399317343,0.22458389,104690.0,104680.0,2.31686023]
[1750399319251,0.22458389,104690.0,104680.0,1.74038023]
[1750399319454,0.22458389,104690.0,104680.0,2.31674023]
[1750399322949,0.22458389,104690.0,104680.0,1.74038023]
[1750399323153,0.22458389,104690.0,104680.0,2.31674023]
[1750399323545,0.36458389,104690.0,104680.0,2.31674023]
[1750399323751,0.22458389,104690.0,104680.0,2.31674023]
[1750399324049,0.35458389,104690.0,104680.0,2.31674023]
[1750399324249,0.22458389,104690.0,104680.0,2.31674023]